[Event "Astana Open-A 2019"]
[Site "Nur-Sultan"]
[Date "2019.07.12"]
[Round "4.6"]
[White "Nogerbek, Kazybek"]
[Black "Kostenko, Petr"]
[Result "1/2-1/2"]
[ECO "B10"]
[WhiteElo "2275"]
[BlackElo "2471"]
[Annotator "ChessBase"]
[PlyCount "83"]
[EventDate "2019.07.11"]
[EventCountry "KAZ"]
[SourceTitle "playchess.com"]
[Source "ChessBase"]
[SourceQuality "1"]
[TimeControl "5400+30"]

1. e4 {[%emt 0:00:00]} c6 {[%emt 0:00:00]} 2. Nf3 {[%emt 0:01:37]} d5 {[%emt 0:01:00]} 3. exd5 {[%emt 0:00:06]} cxd5 {[%emt 0:00:03]} 4. Ne5 {[%emt 0:00:06]} Nc6 {[%emt 0:06:36]} 5. d4 {[%emt 0:00:15]} e6 {[%emt 0:04:53]} 6. Bb5 {[%emt 0:02:08]} Qc7 {[%emt 0:05:38]} 7. O-O {[%emt 0:00:29]} Bd6 {[%emt 0:00:19]} 8. Re1 {[%emt 0:01:07]} Nge7 {[%emt 0:01:28]} 9. c4 {[%emt 0:03:56]} O-O {[%emt 0:03:09]} 10. cxd5 {[%emt 0:03:44]} Nxd5 {[%emt 0:00:16]} 11. Bxc6 {[%emt 0:00:25]} bxc6 {[%emt 0:00:04]} 12. Nd2 {[%emt 0:00:46]} c5 {[%emt 0:15:09]} 13. Ne4 {[%emt 0:03:18]} cxd4 {[%emt 0:00:20]} 14. Nxd6 {[%emt 0:00:19]} Qxd6 {[%emt 0:00:04]} 15. Qxd4 {[%emt 0:00:16]} Bb7 {[%emt 0:06:01]} 16. b3 {[%emt 0:02:58]} f6 {[%emt 0:02:03]} 17. Nc4 {[%emt 0:01:32]} Qa6 {[%emt 0:00:38]} 18. Ne3 {[%emt 0:02:07]} Rac8 {[%emt 0:11:58]} 19. Nxd5 {[%emt 0:03:23]} Bxd5 {[%emt 0:00:04]} 20. Be3 {[%emt 0:00:09]} Rc7 {[%emt 0:00:15]} 21. Rac1 {[%emt 0:04:05]} Rxc1 {[%emt 0:09:09]} 22. Rxc1 {[%emt 0:00:10]} Qxa2 {[%emt 0:00:22]} 23. Qxa7 {[%emt 0:00:08]} Qxb3 {[%emt 0:01:53]} 24. h3 {[%emt 0:00:30]} h6 {[%emt 0:02:35]} 25. Qb6 {[%emt 0:07:07]} Qxb6 {[%emt 0:02:00]} 26. Bxb6 {[%emt 0:00:09]} Rb8 {[%emt 0:00:04]} 27. Be3 {[%emt 0:00:40]} Rb4 {[%emt 0:01:15]} 28. Rc7 {[%emt 0:01:09]} g5 {[%emt 0:02:12]} 29. Bd2 {[%emt 0:05:33]} Rb1+ {[%emt 0:00:15]} 30. Rc1 {[%emt 0:00:12]} Rb7 {[%emt 0:00:29]} 31. h4 {[%emt 0:05:25]} gxh4 {[%emt 0:01:19]} 32. Bxh6 {[%emt 0:01:08]} Kh7 {[%emt 0:00:20]} 33. Bf8 {[%emt 0:00:40]} Kg6 {[%emt 0:00:20]} 34. Kh2 {[%emt 0:00:22]} Kg5 {[%emt 0:04:10]} 35. Rd1 {[%emt 0:01:50]} Rb5 {[%emt 0:02:53]} 36. Rd3 {[%emt 0:01:18]} Rb1 {[%emt 0:01:10]} 37. Bc5 {[%emt 0:01:39]} Rb2 {[%emt 0:02:53]} 38. Be3+ {[%emt 0:00:55]} Kf5 {[%emt 0:00:44]} 39. Rd4 {[%emt 0:00:22]} Rb7 {[%emt 0:01:12]} 40. Rxh4 {[%emt 0:00:17]} e5 {[%emt 0:00:18]} 41. Rh6 {[%emt 0:01:12]} Rf7 {[%emt 0:00:27]} 42. Bb6 {[%emt 0:01:20]} 1/2-1/2

[Event "Astana Open-A 2019"]
[Site "Nur-Sultan"]
[Date "2019.07.15"]
[Round "6.3"]
[White "Dmitry, Bocharov"]
[Black "Vladimir, Burmakin"]
[Result "1-0"]
[ECO "B12"]
[WhiteElo "2506"]
[BlackElo "2506"]
[Annotator "ChessBase"]
[PlyCount "113"]
[EventDate "2019.07.11"]
[EventCountry "KAZ"]
[SourceTitle "playchess.com"]
[Source "ChessBase"]
[SourceQuality "1"]
[TimeControl "90+30"]

1. e4 {[%emt 0:00:00]} c6 {[%emt 0:00:00]} 2. d4 {[%emt 0:00:00]} d5 {[%emt 0:00:00]} 3. e5 {[%emt 0:00:00]} Bf5 {[%emt 0:00:00]} 4. Nf3 {[%emt 0:00:00]} e6 {[%emt 0:00:00]} 5. Be2 {[%emt 0:00:00]} Nd7 {[%emt 0:00:00]} 6. O-O {[%emt 0:00:00]} Bg6 {[%emt 0:00:00]} 7. a4 {[%emt 0:00:00]} Ne7 {[%emt 0:00:00]} 8. a5 {[%emt 0:00:00]} Nf5 {[%emt 0:00:00]} 9. h3 {[%emt 0:00:00]} Bb4 {[%emt 0:00:00]} 10. Bd2 {[%emt 0:00:00]} Bxd2 {[%emt 0:00:00]} 11. Nbxd2 {[%emt 0:00:00]} O-O {[%emt 0:00:00]} 12. b4 {[%emt 0:00:00]} f6 {[%emt 0:00:00]} 13. exf6 {[%emt 0:00:00]} Qxf6 {[%emt 0:00:00]} 14. Nb3 {[%emt 0:00:00]} e5 {[%emt 0:00:00]} 15. dxe5 {[%emt 0:00:00]} Nxe5 {[%emt 0:00:00]} 16. Nxe5 {[%emt 0:00:00]} Qxe5 {[%emt 0:00:00]} 17. Bd3 {[%emt 0:00:00]} Qc3 {[%emt 0:00:00]} 18. Qe1 {[%emt 0:00:00]} Qf6 {[%emt 0:00:00]} 19. Nc5 {[%emt 0:00:00]} Rae8 {[%emt 0:00:00]} 20. Qd2 {[%emt 0:00:00]} Re7 {[%emt 0:00:00]} 21. Rae1 {[%emt 0:00:00]} Rfe8 {[%emt 0:00:00]} 22. Rxe7 {[%emt 0:00:00]} Qxe7 {[%emt 0:00:00]} 23. c4 {[%emt 0:00:00]} b6 {[%emt 0:00:00]} 24. axb6 {[%emt 0:00:00]} axb6 {[%emt 0:00:00]} 25. Na4 {[%emt 0:00:00]} Qa7 {[%emt 0:00:00]} 26. Nc3 {[%emt 0:00:00]} dxc4 {[%emt 0:00:00]} 27. Bxc4+ {[%emt 0:00:00]} Bf7 {[%emt 0:00:00]} 28. Bxf7+ {[%emt 0:00:00]} Qxf7 {[%emt 0:00:00]} 29. Na4 {[%emt 0:00:00]} b5 {[%emt 0:00:00]} 30. Nc5 {[%emt 0:00:00]} h6 {[%emt 0:00:00]} 31. Rd1 {[%emt 0:00:00]} Re5 {[%emt 0:00:00]} 32. Qf4 {[%emt 0:00:00]} Rd5 {[%emt 0:00:00]} 33. Re1 {[%emt 0:00:00]} Nd6 {[%emt 0:01:05]} 34. Qg3 {[%emt 0:00:45]} Kh7 {[%emt 0:03:52]} 35. Ne6 {[%emt 0:06:23]} Qf6 {[%emt 0:00:03]} 36. h4 {[%emt 0:03:27]} Kg8 {[%emt 0:04:04]} 37. h5 {[%emt 0:02:03]} Kh7 {[%emt 0:03:32]} 38. Nf4 {[%emt 0:04:30]} Re5 {[%emt 0:03:24]} 39. Rd1 {[%emt 0:01:23]} Kg8 {[%emt 0:01:52]} 40. Ng6 {[%emt 0:01:23]} Rd5 {[%emt 0:01:59]} 41. Rxd5 {[%emt 0:00:55]} cxd5 {[%emt 0:00:01]} 42. Qa3 {[%emt 0:00:10]} Qd8 {[%emt 0:00:55]} 43. Qa7 {[%emt 0:00:29]} Ne4 {[%emt 0:01:11]} 44. Qb7 {[%emt 0:00:38]} Nf6 {[%emt 0:00:19]} 45. Qxb5 {[%emt 0:00:21]} d4 {[%emt 0:00:26]} 46. Qc4+ {[%emt 0:00:46]} Kh7 {[%emt 0:00:02]} 47. Nf4 {[%emt 0:00:15]} Qd6 {[%emt 0:00:22]} 48. g3 {[%emt 0:00:47]} Qe5 {[%emt 0:00:11]} 49. b5 {[%emt 0:00:46]} Nxh5 {[%emt 0:01:14]} 50. Qd3+ {[%emt 0:00:45]} Kg8 {[%emt 0:00:03]} 51. Qb3+ {[%emt 0:00:22]} Kh7 {[%emt 0:00:15]} 52. Qb1+ {[%emt 0:00:16]} Kg8 {[%emt 0:00:06]} 53. Nxh5 {[%emt 0:00:28]} Qxh5 {[%emt 0:00:01]} 54. b6 {[%emt 0:00:08]} Qe8 {[%emt 0:00:06]} 55. b7 {[%emt 0:00:08]} Qb8 {[%emt 0:00:02]} 56. Qb5 {[%emt 0:00:25]} d3 {[%emt 0:00:05]} 57. Kf1 {[%emt 0:00:16]} 1-0

[Event "Astana Open-A 2019"]
[Site "Nur-Sultan"]
[Date "2019.07.16"]
[Round "7.1"]
[White "Dmitry, Bocharov"]
[Black "Vitaly, Sivuk"]
[Result "1/2-1/2"]
[ECO "D10"]
[WhiteElo "2506"]
[BlackElo "2546"]
[Annotator "ChessBase"]
[PlyCount "139"]
[EventDate "2019.07.11"]
[EventCountry "KAZ"]
[SourceTitle "playchess.com"]
[Source "ChessBase"]
[SourceQuality "1"]
[TimeControl "90+30"]

1. c4 {[%emt 0:00:00]} c6 {[%emt 0:00:00]} 2. Nf3 {[%emt 0:00:00]} d5 {[%emt 0:00:00]} 3. e3 {[%emt 0:00:00]} Nf6 {[%emt 0:00:00]} 4. Nc3 {[%emt 0:00:00]} a6 {[%emt 0:00:00]} 5. Qc2 {[%emt 0:00:00]} g6 {[%emt 0:00:00]} 6. d4 {[%emt 0:00:00]} Bg7 {[%emt 0:00:00]} 7. Bd3 {[%emt 0:00:00]} O-O {[%emt 0:00:00]} 8. O-O {[%emt 0:00:00]} b5 {[%emt 0:00:00]} 9. b3 {[%emt 0:00:00]} Nbd7 {[%emt 0:00:00]} 10. e4 {[%emt 0:00:00]} bxc4 {[%emt 0:00:00]} 11. bxc4 {[%emt 0:00:00]} dxe4 {[%emt 0:00:00]} 12. Nxe4 {[%emt 0:00:00]} c5 {[%emt 0:00:00]} 13. Bb2 {[%emt 0:00:00]} cxd4 {[%emt 0:00:00]} 14. Bxd4 {[%emt 0:00:00]} Bb7 {[%emt 0:00:00]} 15. Rab1 {[%emt 0:00:00]} Qc7 {[%emt 0:00:00]} 16. Nxf6+ {[%emt 0:00:00]} Nxf6 {[%emt 0:00:00]} 17. Be5 {[%emt 0:00:00]} Qc8 {[%emt 0:00:00]} 18. c5 {[%emt 0:02:00]} Bxf3 {[%emt 0:00:00]} 19. gxf3 {[%emt 0:00:23]} Nh5 {[%emt 0:00:00]} 20. Bxg7 {[%emt 0:03:59]} Nxg7 {[%emt 0:00:00]} 21. c6 {[%emt 0:01:30]} Ra7 {[%emt 0:00:00]} 22. Rfc1 {[%emt 0:00:15]} Rc7 {[%emt 0:00:00]} 23. Rb6 {[%emt 0:03:11]} Qh3 {[%emt 0:00:00]} 24. Qe2 {[%emt 0:00:54]} Ne6 {[%emt 0:00:00]} 25. Qe3 {[%emt 0:00:21]} Rd8 {[%emt 0:00:00]} 26. Bf1 {[%emt 0:00:23]} Qh4 {[%emt 0:00:00]} 27. Rb7 {[%emt 0:00:21]} Rd5 {[%emt 0:00:00]} 28. Rxc7 {[%emt 0:01:32]} Nxc7 {[%emt 0:00:00]} 29. f4 {[%emt 0:00:37]} Qf6 {[%emt 0:00:00]} 30. h3 {[%emt 0:00:29]} Qd6 {[%emt 0:00:00]} 31. Bg2 {[%emt 0:00:22]} Rd2 {[%emt 0:00:00]} 32. a4 {[%emt 0:00:37]} Rd4 {[%emt 0:00:00]} 33. Qe5 {[%emt 0:00:29]} Rxa4 {[%emt 0:07:48]} 34. Qxd6 {[%emt 0:00:33]} exd6 {[%emt 0:00:05]} 35. Rb1 {[%emt 0:00:06]} Nb5 {[%emt 0:00:58]} 36. Bf1 {[%emt 0:00:22]} Re4 {[%emt 0:00:28]} 37. Bxb5 {[%emt 0:00:26]} axb5 {[%emt 0:00:04]} 38. Rxb5 {[%emt 0:00:57]} Rc4 {[%emt 0:00:06]} 39. Rb6 {[%emt 0:00:19]} Kf8 {[%emt 0:00:38]} 40. c7 {[%emt 0:00:41]} Ke7 {[%emt 0:01:09]} 41. Rb7 {[%emt 0:00:05]} Ke6 {[%emt 0:00:36]} 42. Kf1 {[%emt 0:00:09]} f6 {[%emt 0:01:37]} 43. Ke2 {[%emt 0:00:18]} h5 {[%emt 0:01:51]} 44. Kd3 {[%emt 0:00:18]} d5 {[%emt 0:01:02]} 45. Ke3 {[%emt 0:01:38]} h4 {[%emt 0:01:23]} 46. Kf3 {[%emt 0:00:41]} Rc3+ {[%emt 0:00:49]} 47. Ke2 {[%emt 0:00:21]} Kf5 {[%emt 0:00:25]} 48. Rb5 {[%emt 0:00:29]} Ke4 {[%emt 0:01:08]} 49. Rb4+ {[%emt 0:00:15]} d4 {[%emt 0:01:19]} 50. f3+ {[%emt 0:00:21]} Kd5 {[%emt 0:00:10]} 51. Rb5+ {[%emt 0:00:47]} Ke6 {[%emt 0:00:18]} 52. Rb4 {[%emt 0:00:27]} Rc2+ {[%emt 0:01:23]} 53. Kd3 {[%emt 0:00:11]} Rxc7 {[%emt 0:00:05]} 54. Rxd4 {[%emt 0:00:29]} Kf5 {[%emt 0:02:02]} 55. Ke3 {[%emt 0:00:27]} Rc2 {[%emt 0:00:27]} 56. Rd5+ {[%emt 0:00:23]} Ke6 {[%emt 0:00:01]} 57. Rd4 {[%emt 0:00:08]} f5 {[%emt 0:00:56]} 58. Rd8 {[%emt 0:00:34]} Rh2 {[%emt 0:00:13]} 59. Rh8 {[%emt 0:00:25]} Rxh3 {[%emt 0:00:05]} 60. Kf2 {[%emt 0:00:11]} Rh2+ {[%emt 0:02:09]} 61. Kg1 {[%emt 0:00:09]} Ra2 {[%emt 0:00:06]} 62. Rxh4 {[%emt 0:00:08]} Kd5 {[%emt 0:00:04]} 63. Rh8 {[%emt 0:01:18]} Kd4 {[%emt 0:00:22]} 64. Re8 {[%emt 0:00:09]} Kd3 {[%emt 0:00:15]} 65. Kf1 {[%emt 0:00:08]} Ra4 {[%emt 0:00:17]} 66. Kf2 {[%emt 0:00:25]} Rxf4 {[%emt 0:00:06]} 67. Rg8 {[%emt 0:00:10]} Ra4 {[%emt 0:00:50]} 68. Rxg6 {[%emt 0:00:10]} f4 {[%emt 0:00:14]} 69. Rd6+ {[%emt 0:00:07]} Rd4 {[%emt 0:00:18]} 70. Re6 {[%emt 0:00:30]} 1/2-1/2

[Event "Astana Open-A 2019"]
[Site "Nur-Sultan"]
[Date "2019.07.16"]
[Round "7.4"]
[White "Konstantin, Kazakov"]
[Black "Vadim, Malakhatko"]
[Result "1/2-1/2"]
[ECO "C07"]
[WhiteElo "2380"]
[BlackElo "2462"]
[Annotator "ChessBase"]
[PlyCount "127"]
[EventDate "2019.07.11"]
[EventCountry "KAZ"]
[SourceTitle "playchess.com"]
[Source "ChessBase"]
[SourceQuality "1"]
[TimeControl "90+30"]

1. e4 {[%emt 0:00:00]} e6 {[%emt 0:00:00]} 2. d4 {[%emt 0:00:00]} d5 {[%emt 0:00:00]} 3. Nd2 {[%emt 0:00:00]} c5 {[%emt 0:00:00]} 4. exd5 {[%emt 0:00:00]} Qxd5 {[%emt 0:00:00]} 5. Ngf3 {[%emt 0:00:00]} cxd4 {[%emt 0:00:00]} 6. Bc4 {[%emt 0:00:00]} Qd8 {[%emt 0:00:00]} 7. O-O {[%emt 0:00:00]} Nc6 {[%emt 0:00:00]} 8. Nb3 {[%emt 0:00:00]} a6 {[%emt 0:00:00]} 9. Nbxd4 {[%emt 0:00:00]} Nxd4 {[%emt 0:00:00]} 10. Nxd4 {[%emt 0:00:00]} Qc7 {[%emt 0:00:00]} 11. Bb3 {[%emt 0:00:00]} Bd6 {[%emt 0:00:00]} 12. Qh5 {[%emt 0:00:00]} Nf6 {[%emt 0:00:00]} 13. Qh4 {[%emt 0:00:00]} Bd7 {[%emt 0:00:00]} 14. Bg5 {[%emt 0:00:00]} O-O-O {[%emt 0:00:00]} 15. Nf3 {[%emt 0:00:00]} Bc6 {[%emt 0:00:00]} 16. Bxf6 {[%emt 0:00:00]} gxf6 {[%emt 0:00:00]} 17. Qxf6 {[%emt 0:00:00]} Rhg8 {[%emt 0:00:00]} 18. g3 {[%emt 0:00:00]} Rg6 {[%emt 0:00:00]} 19. Qc3 {[%emt 0:00:00]} Rdg8 {[%emt 0:00:00]} 20. Nd4 {[%emt 0:00:00]} Bxg3 {[%emt 0:00:00]} 21. fxg3 {[%emt 0:00:00]} Rxg3+ {[%emt 0:00:00]} 22. hxg3 {[%emt 0:00:00]} Rxg3+ {[%emt 0:00:00]} 23. Kf2 {[%emt 0:00:00]} Rxc3 {[%emt 0:00:00]} 24. bxc3 {[%emt 0:00:00]} Be4 {[%emt 0:00:00]} 25. Rae1 {[%emt 0:00:00]} Bg6 {[%emt 0:00:00]} 26. Re3 {[%emt 0:00:00]} Kb8 {[%emt 0:00:00]} 27. Nf3 {[%emt 0:00:00]} Qc5 {[%emt 0:00:00]} 28. Rd1 {[%emt 0:00:00]} Bh5 {[%emt 0:00:00]} 29. Rg1 {[%emt 0:00:00]} Bg6 {[%emt 0:00:00]} 30. Ne5 {[%emt 0:00:00]} Qd6 {[%emt 0:00:00]} 31. Ke1 {[%emt 0:00:00]} Bh5 {[%emt 0:00:00]} 32. Nd3 {[%emt 0:00:00]} Qh2 {[%emt 0:00:00]} 33. Rf1 {[%emt 0:00:00]} Qh4+ {[%emt 0:00:00]} 34. Kd2 {[%emt 0:00:00]} Qg5 {[%emt 0:00:00]} 35. Nf4 {[%emt 0:00:00]} Bg4 {[%emt 0:00:00]} 36. Nd3 {[%emt 0:00:00]} Bf5 {[%emt 0:01:18]} 37. Ne5 {[%emt 0:00:00]} h5 {[%emt 0:08:52]} 38. Nxf7 {[%emt 0:00:00]} Qg2+ {[%emt 0:00:05]} 39. Ke1 {[%emt 0:00:00]} h4 {[%emt 0:00:20]} 40. Bxe6 {[%emt 0:00:00]} Bxe6 {[%emt 0:01:51]} 41. Rxe6 {[%emt 0:00:00]} Qxc2 {[%emt 0:00:10]} 42. Re3 {[%emt 0:00:00]} Qxa2 {[%emt 0:02:18]} 43. Ng5 {[%emt 0:00:00]} a5 {[%emt 0:00:41]} 44. Rf4 {[%emt 0:00:00]} Qb1+ {[%emt 0:02:17]} 45. Kf2 {[%emt 0:00:00]} Qc2+ {[%emt 0:00:08]} 46. Kf3 {[%emt 0:00:00]} Qd1+ {[%emt 0:00:07]} 47. Ke4 {[%emt 0:00:00]} a4 {[%emt 0:00:59]} 48. Kf5 {[%emt 0:00:00]} Qd7+ {[%emt 0:01:51]} 49. Ne6 {[%emt 0:00:00]} a3 {[%emt 0:00:26]} 50. Ke5 {[%emt 0:03:21]} a2 {[%emt 0:03:52]} 51. Re1 {[%emt 0:00:24]} Qd2 {[%emt 0:00:30]} 52. Rff1 {[%emt 0:00:26]} Qxc3+ {[%emt 0:00:12]} 53. Kd6 {[%emt 0:00:12]} h3 {[%emt 0:00:37]} 54. Kd5 {[%emt 0:03:18]} Qb3+ {[%emt 0:01:07]} 55. Kd6 {[%emt 0:00:30]} Qa3+ {[%emt 0:00:31]} 56. Kd5 {[%emt 0:00:07]} Qb3+ {[%emt 0:00:36]} 57. Kd6 {[%emt 0:00:05]} Ka7 {[%emt 0:00:15]} 58. Nc5 {[%emt 0:01:35]} Qb2 {[%emt 0:00:23]} 59. Kd5 {[%emt 0:00:20]} Qd2+ {[%emt 0:00:50]} 60. Kc4 {[%emt 0:01:59]} Qc2+ {[%emt 0:00:06]} 61. Kb4 {[%emt 0:00:11]} Qd2+ {[%emt 0:00:04]} 62. Kc4 {[%emt 0:00:35]} Qc2+ {[%emt 0:00:29]} 63. Kb4 {[%emt 0:00:04]} Qd2+ {[%emt 0:00:04]} 64. Kc4 {[%emt 0:00:05]} 1/2-1/2

[Event "Astana Open-A 2019"]
[Site "Nur-Sultan"]
[Date "2019.07.16"]
[Round "7.6"]
[White "Evgeniy, Pak"]
[Black "Jakhongir, Vakhidov"]
[Result "0-1"]
[ECO "B08"]
[WhiteElo "2402"]
[BlackElo "2541"]
[Annotator "ChessBase"]
[PlyCount "90"]
[EventDate "2019.07.11"]
[EventCountry "KAZ"]
[SourceTitle "playchess.com"]
[Source "ChessBase"]
[SourceQuality "1"]
[TimeControl "90+30"]

1. d4 {[%emt 0:00:00]} d6 {[%emt 0:00:00]} 2. e4 {[%emt 0:00:00]} Nf6 {[%emt 0:00:00]} 3. Nc3 {[%emt 0:00:00]} g6 {[%emt 0:00:00]} 4. Nf3 {[%emt 0:00:00]} Bg7 {[%emt 0:00:00]} 5. Be2 {[%emt 0:00:00]} O-O {[%emt 0:00:00]} 6. O-O {[%emt 0:00:00]} e6 {[%emt 0:00:00]} 7. Re1 {[%emt 0:00:00]} Nc6 {[%emt 0:00:00]} 8. Bf1 {[%emt 0:00:00]} b6 {[%emt 0:00:00]} 9. a4 {[%emt 0:00:00]} Bb7 {[%emt 0:00:00]} 10. h3 {[%emt 0:00:00]} a6 {[%emt 0:00:00]} 11. b3 {[%emt 0:00:00]} Re8 {[%emt 0:00:00]} 12. Bb2 {[%emt 0:00:00]} Nb4 {[%emt 0:00:00]} 13. Qc1 {[%emt 0:00:00]} c5 {[%emt 0:00:00]} 14. dxc5 {[%emt 0:00:00]} bxc5 {[%emt 0:00:00]} 15. e5 {[%emt 0:00:00]} Nd7 {[%emt 0:00:00]} 16. exd6 {[%emt 0:00:00]} Bxf3 {[%emt 0:00:00]} 17. gxf3 {[%emt 0:00:00]} Ne5 {[%emt 0:00:00]} 18. Rxe5 {[%emt 0:00:00]} Bxe5 {[%emt 0:00:00]} 19. Ne4 {[%emt 0:00:00]} Nc6 {[%emt 0:00:00]} 20. d7 {[%emt 0:00:00]} Rf8 {[%emt 0:00:00]} 21. Bxe5 {[%emt 0:00:00]} Nxe5 {[%emt 0:00:00]} 22. Qf4 {[%emt 0:00:00]} Nxd7 {[%emt 0:00:00]} 23. Rd1 {[%emt 0:00:00]} Ra7 {[%emt 0:00:00]} 24. Bxa6 {[%emt 0:00:00]} Qe7 {[%emt 0:00:00]} 25. Bb5 {[%emt 0:00:00]} f5 {[%emt 0:00:00]} 26. Ng5 {[%emt 0:00:00]} Ne5 {[%emt 0:00:00]} 27. Qxe5 {[%emt 0:00:00]} Qxg5+ {[%emt 0:00:00]} 28. Kf1 {[%emt 0:00:00]} Re7 {[%emt 0:00:00]} 29. Bc4 {[%emt 0:00:00]} Qf6 {[%emt 0:00:00]} 30. Qxc5 {[%emt 0:00:00]} Kg7 {[%emt 0:00:00]} 31. f4 {[%emt 0:00:00]} e5 {[%emt 0:00:00]} 32. fxe5 {[%emt 0:00:00]} Rxe5 {[%emt 0:05:45]} 33. Qd6 {[%emt 0:00:00]} Qxd6 {[%emt 0:00:24]} 34. Rxd6 {[%emt 0:00:00]} f4 {[%emt 0:00:11]} 35. f3 {[%emt 0:00:00]} Rh5 {[%emt 0:05:56]} 36. Kg2 {[%emt 0:00:00]} Rff5 {[%emt 0:00:26]} 37. Be6 {[%emt 0:00:00]} Rc5 {[%emt 0:01:37]} 38. c4 {[%emt 0:00:00]} Rce5 {[%emt 0:00:04]} 39. Bg4 {[%emt 0:00:00]} Re2+ {[%emt 0:00:04]} 40. Kf1 {[%emt 0:00:00]} Rhe5 {[%emt 0:00:05]} 41. Rd1 {[%emt 0:00:00]} Rb2 {[%emt 0:03:43]} 42. Rd3 {[%emt 0:01:55]} Kf6 {[%emt 0:00:44]} 43. Rc3 {[%emt 0:00:28]} Kg5 {[%emt 0:01:00]} 44. Rc1 {[%emt 0:02:13]} Ree2 {[%emt 0:00:32]} 45. Rb1 {[%emt 0:00:38]} Rf2+ {[%emt 0:00:17]} 0-1

[Event "Astana Open-A 2019"]
[Site "Nur-Sultan"]
[Date "2019.07.17"]
[Round "8.1"]
[White "Sivuk, Vitaly"]
[Black "Anton, Shomoev"]
[Result "1/2-1/2"]
[ECO "E71"]
[WhiteElo "2546"]
[BlackElo "2559"]
[Annotator "ChessBase"]
[PlyCount "122"]
[EventDate "2019.07.11"]
[EventCountry "KAZ"]
[SourceTitle "playchess.com"]
[Source "ChessBase"]
[SourceQuality "1"]
[TimeControl "5400+30"]

1. d4 {[%emt 0:00:00]} Nf6 {[%emt 0:00:00]} 2. c4 {[%emt 0:00:00]} g6 {[%emt 0:00:00]} 3. Nc3 {[%emt 0:00:00]} Bg7 {[%emt 0:00:00]} 4. e4 {[%emt 0:00:00]} d6 {[%emt 0:00:00]} 5. h3 {[%emt 0:00:12]} O-O {[%emt 0:00:06]} 6. Be3 {[%emt 0:00:04]} e5 {[%emt 0:00:06]} 7. d5 {[%emt 0:00:09]} Na6 {[%emt 0:00:06]} 8. g4 {[%emt 0:00:24]} Nc5 {[%emt 0:00:39]} 9. f3 {[%emt 0:00:10]} a5 {[%emt 0:05:00]} 10. Nge2 {[%emt 0:00:37]} c6 {[%emt 0:07:34]} 11. Ng3 {[%emt 0:03:00]} cxd5 {[%emt 0:00:20]} 12. cxd5 {[%emt 0:00:09]} a4 {[%emt 0:00:25]} 13. Qd2 {[%emt 0:00:44]} Qa5 {[%emt 0:01:24]} 14. Nb5 {[%emt 0:02:50]} Qd8 {[%emt 0:07:24]} 15. Rc1 {[%emt 0:02:15]} b6 {[%emt 0:00:35]} 16. Be2 {[%emt 0:05:52]} Ne8 {[%emt 0:04:29]} 17. h4 {[%emt 0:08:17]} f5 {[%emt 0:01:08]} 18. gxf5 {[%emt 0:00:16]} gxf5 {[%emt 0:00:01]} 19. exf5 {[%emt 0:07:03]} Bxf5 {[%emt 0:01:22]} 20. Nc3 {[%emt 0:02:24]} Ra7 {[%emt 0:07:24]} 21. Nce4 {[%emt 0:04:23]} Raf7 {[%emt 0:17:56]} 22. Ng5 {[%emt 0:04:02]} Rf6 {[%emt 0:00:54]} 23. Bxc5 {[%emt 0:06:39]} bxc5 {[%emt 0:03:32]} 24. Nxf5 {[%emt 0:12:36]} Rxf5 {[%emt 0:00:07]} 25. Bd3 {[%emt 0:00:10]} Rxf3 {[%emt 0:07:50]} 26. Bxh7+ {[%emt 0:05:00]} Kh8 {[%emt 0:00:31]} 27. Nxf3 {[%emt 0:01:31]} Rxf3 {[%emt 0:00:10]} 28. Be4 {[%emt 0:00:56]} Rf4 {[%emt 0:01:55]} 29. Rc4 {[%emt 0:00:10]} Nf6 {[%emt 0:03:57]} 30. Bd3 {[%emt 0:05:27]} Nxd5 {[%emt 0:03:53]} 31. Qe2 {[%emt 0:10:05]} Bh6 {[%emt 0:16:28]} 32. Rxf4 {[%emt 0:07:17]} Nxf4 {[%emt 0:01:23]} 33. Qe4 {[%emt 0:00:16]} Qg8 {[%emt 0:02:49]} 34. Bb1 {[%emt 0:04:45]} c4 {[%emt 0:02:36]} 35. Kf1 {[%emt 0:04:31]} Qf7 {[%emt 0:00:46]} 36. Ke1 {[%emt 0:02:38]} Qg7 {[%emt 0:02:24]} 37. Qa8+ {[%emt 0:01:45]} Qg8 {[%emt 0:00:06]} 38. Qxg8+ {[%emt 0:00:44]} Kxg8 {[%emt 0:00:01]} 39. Rf1 {[%emt 0:00:55]} d5 {[%emt 0:01:12]} 40. Bc2 {[%emt 0:00:40]} Kf7 {[%emt 0:01:33]} 41. Bxa4 {[%emt 0:00:15]} Ke6 {[%emt 0:00:01]} 42. Bc2 {[%emt 0:00:30]} Ng2+ {[%emt 0:01:34]} 43. Kf2 {[%emt 0:01:02]} Nxh4 {[%emt 0:01:08]} 44. Rh1 {[%emt 0:00:05]} Bg5 {[%emt 0:00:09]} 45. a4 {[%emt 0:00:19]} e4 {[%emt 0:00:10]} 46. a5 {[%emt 0:00:15]} Nf5 {[%emt 0:00:25]} 47. a6 {[%emt 0:00:31]} Be3+ {[%emt 0:00:15]} 48. Ke1 {[%emt 0:00:32]} Nd6 {[%emt 0:01:25]} 49. Ba4 {[%emt 0:00:38]} Nc8 {[%emt 0:00:31]} 50. Rh3 {[%emt 0:00:23]} Bf4 {[%emt 0:00:44]} 51. Rh7 {[%emt 0:00:21]} Kd6 {[%emt 0:00:26]} 52. a7 {[%emt 0:00:18]} Nxa7 {[%emt 0:00:04]} 53. Rxa7 {[%emt 0:00:04]} d4 {[%emt 0:00:06]} 54. Rd7+ {[%emt 0:01:36]} Kc5 {[%emt 0:00:13]} 55. Bd1 {[%emt 0:00:50]} d3 {[%emt 0:00:24]} 56. Bh5 {[%emt 0:00:19]} e3 {[%emt 0:00:31]} 57. Kd1 {[%emt 0:00:10]} Be5 {[%emt 0:00:42]} 58. Rb7 {[%emt 0:00:48]} e2+ {[%emt 0:00:46]} 59. Bxe2 {[%emt 0:00:06]} dxe2+ {[%emt 0:00:02]} 60. Kxe2 {[%emt 0:00:06]} Kc6 {[%emt 0:00:01]} 61. Rb4 {[%emt 0:00:14]} Kc5 {[%emt 0:00:04]} 1/2-1/2